fUST/lending_fUST_20241106
["ID","MTS","AMOUNT","RATE_DAILY","PERIOD"]
[341368775,1730847039586,-3566.69350431,0.000382,109]
[341368776,1730847039595,-189.2051024,0.00038273,2]
[341368777,1730847039604,-1675.89,0.00038346,10]
[341368778,1730847039613,-1396.58,0.00038346,10]
[341368779,1730847039623,-248.7689283,0.00038355,14]
[341368780,1730847039632,-151.0,0.00038355,3]
[341368781,1730847039642,-151.0,0.00038355,14]
[341368782,1730847039651,-600.0,0.00038355,2]
[341368783,1730847039661,-151.0,0.00038356,14]
[341368784,1730847039670,-500.0,0.00038356,14]
[341368786,1730847039679,-500.0,0.00038356,14]
[341368788,1730847039688,-500.0,0.00038356,14]
[341368790,1730847039698,-500.0,0.00038356,14]
[341368791,1730847039707,-500.0,0.00038356,14]
[341368792,1730847039716,-500.0,0.00038356,14]
[341368793,1730847039725,-214.00137359,0.00038356,14]
[341368794,1730847039735,-500.0,0.00038356,14]
[341368795,1730847039744,-500.0,0.00038356,14]
[341368796,1730847039753,-500.0,0.00038356,14]
[341368797,1730847039763,-500.0,0.00038356,7]
[341368798,1730847039773,-500.0,0.00038356,14]
[341368799,1730847039782,-154.038182,0.00038356,14]
[341368800,1730847039792,-152.941684,0.00038356,14]
[341368801,1730847039801,-500.0,0.00038356,14]
[341368802,1730847039811,-507.14589101,0.00038356,14]
[341368803,1730847039822,-500.0,0.00038356,14]
[341368804,1730847039833,-151.0,0.00038356,14]
[341368805,1730847039842,-153.284435,0.00038356,14]
[341368806,1730847039851,-352.38781201,0.00038356,14]
[341368807,1730847039861,-500.0,0.00038356,14]
[341368808,1730847039870,-500.4326438,0.00038356,14]
[341368809,1730847039880,-500.0,0.00038356,14]
[341368810,1730847039890,-306.95649109,0.00038356,14]
[341368811,1730847039899,-500.0,0.00038356,14]
[341368813,1730847039908,-500.0,0.00038356,14]
[341368815,1730847039917,-1000.0,0.00038356,14]
[341368816,1730847039926,-321.50431857,0.00038356,14]
[341368817,1730847039936,-533.38240608,0.00038356,14]
[341368818,1730847039945,-500.0,0.00038356,14]
[341368819,1730847039955,-500.0,0.00038356,14]
[341368820,1730847039964,-513.16187862,0.00038356,14]
[341368821,1730847039973,-507.60800119,0.00038356,14]
[341368822,1730847039983,-217.9930492,0.00038356,14]
[341368823,1730847039997,-595.6971547,0.00038356,14]
[341368824,1730847040009,-521.87194393,0.00038356,14]
[341368825,1730847040018,-500.0,0.00038356,14]
[341368826,1730847040028,-153.8163501,0.00038356,14]
[341368827,1730847040037,-506.29667957,0.00038356,14]
[341368828,1730847040047,-641.2628055,0.00038356,14]
[341368829,1730847040056,-500.0,0.00038356,14]
[341368830,1730847040065,-500.0,0.00038356,14]
[341368831,1730847040075,-520.26227639,0.00038356,14]
[341368832,1730847040083,-500.0,0.00038356,14]
[341368834,1730847040093,-500.0,0.00038356,14]
[341368835,1730847040102,-500.0,0.00038356,14]
[341368836,1730847040111,-500.0,0.00038356,14]
[341368837,1730847040120,-500.0,0.00038356,14]
[341368839,1730847040129,-500.0,0.00038356,14]
[341368841,1730847040139,-500.0,0.00038356,14]
[341368842,1730847040148,-573.23846542,0.00038356,14]
[341368843,1730847040157,-500.0,0.00038356,14]
[341368844,1730847040166,-427.37158506,0.00038356,14]
[341368845,1730847040175,-500.0,0.00038356,14]
[341368846,1730847040185,-500.0,0.00038356,14]
[341368847,1730847040250,-500.0,0.00038356,14]
[341368848,1730847040260,-500.0,0.00038356,14]
[341368849,1730847040269,-500.0,0.00038356,14]
[341368850,1730847040279,-500.0,0.00038356,14]
[341368851,1730847040289,-510.42187137,0.00038356,14]
[341368852,1730847040298,-500.0,0.00038356,14]
[341368853,1730847040308,-500.0,0.00038356,10]
[341368854,1730847040317,-500.0,0.00038356,14]
[341368855,1730847040326,-250.0,0.00038356,14]
[341368856,1730847040336,-604.48571884,0.00038356,14]
[341368857,1730847040345,-498.97445574,0.00038356,14]
[341368858,1730847040355,-500.0,0.00038356,14]
[341368859,1730847040364,-240.27301148,0.00038356,14]
[341368860,1730847040373,-151.0,0.00038356,14]
[341368861,1730847040382,-151.0,0.00038356,14]
[341368862,1730847040391,-464.96637804,0.00038356,14]
[341368863,1730847040401,-151.0,0.00038356,14]
[341368864,1730847040410,-504.49217133,0.00038356,14]
[341368865,1730847040418,-502.02890014,0.00038356,14]
[341368866,1730847040428,-151.0,0.00038356,14]
[341368867,1730847040438,-151.0,0.00038356,14]
[341368868,1730847040447,-151.0,0.00038356,14]
[341368869,1730847040456,-151.0,0.00038356,14]
[341368870,1730847040465,-500.0,0.00038356,14]
[341368871,1730847040474,-500.0,0.00038356,120]
[341368872,1730847040483,-151.0,0.00038356,14]
[341368873,1730847040493,-151.0,0.00038356,14]
[341368874,1730847040505,-500.0,0.00038356,14]
[341368875,1730847040515,-151.0,0.00038356,14]
[341368876,1730847040524,-151.0,0.00038356,14]
[341368877,1730847040533,-156.479974,0.00038356,14]
[341368878,1730847040544,-504.76226541,0.00038356,14]
[341368879,1730847040556,-500.0,0.00038356,14]
[341368880,1730847040567,-509.54634652,0.00038356,14]
[341368881,1730847040578,-500.0,0.00038356,14]
[341368882,1730847040589,-500.0,0.00038356,14]
[341368883,1730847040599,-500.0,0.00038356,14]
[341368884,1730847040609,-500.0,0.00038356,14]
[341368885,1730847040620,-500.0,0.00038356,14]
[341368886,1730847040631,-500.0,0.00038356,14]
[341368887,1730847040642,-502.09510416,0.00038356,14]
[341368888,1730847040653,-500.0,0.00038356,14]
[341368889,1730847040665,-500.0,0.00038356,14]
[341368890,1730847040675,-500.0,0.00038356,14]
[341368891,1730847040685,-500.0,0.00038356,14]
[341368892,1730847040694,-500.0,0.00038356,14]
[341368893,1730847040705,-500.0,0.00038356,14]
[341368894,1730847040715,-500.0,0.00038356,14]
[341368895,1730847040725,-502.46448374,0.00038356,14]
[341368896,1730847040734,-505.8211072,0.00038356,14]
[341368897,1730847040744,-519.08224234,0.00038356,14]
[341368898,1730847040754,-500.0,0.00038356,14]
[341368899,1730847040763,-368.79941261,0.00038356,14]
[341368900,1730847040772,-500.0,0.00038356,14]
[341368901,1730847040782,-500.0,0.00038356,14]
[341368902,1730847040792,-506.17743117,0.00038356,14]
[341368903,1730847040801,-425.55058744,0.00038356,14]
[341368904,1730847040810,-500.0,0.00038356,14]
[341368905,1730847040819,-505.16890856,0.00038356,14]
[341368906,1730847040828,-500.0,0.00038356,14]
[341368907,1730847040837,-415.73628175,0.00038356,14]
[341368908,1730847040847,-500.0,0.00038356,14]
[341368909,1730847040856,-500.0,0.00038356,14]
[341368910,1730847040865,-500.0,0.00038356,14]
[341368911,1730847040874,-1000.0,0.00038356,30]
[341368912,1730847040884,-500.0,0.00038356,14]
[341368913,1730847040893,-572.44739528,0.00038356,14]
[341368914,1730847040903,-261.42568783,0.00038356,14]
[341368915,1730847040912,-500.0,0.00038356,14]
[341368916,1730847040921,-500.0,0.00038356,14]
[341368917,1730847040930,-500.0,0.00038356,14]
[341368918,1730847040939,-190.92928459,0.00038356,14]
[341368919,1730847040950,-421.11975488,0.00038356,14]
[341368920,1730847040959,-502.85890861,0.00038356,14]
[341368921,1730847040971,-500.0,0.00038356,14]
[341368922,1730847040980,-505.45444374,0.00038356,14]
[341368923,1730847040989,-151.0,0.00038356,3]
[341368924,1730847040999,-513.71253298,0.00038356,14]
[341368925,1730847041013,-232.774433,0.00038356,3]
[341368926,1730847041022,-500.0,0.00038356,14]
[341368927,1730847041030,-501.65601172,0.00038356,14]
[341368928,1730847041040,-500.0,0.00038356,14]
[341368929,1730847041050,-156.692364,0.00038356,14]
[341368930,1730847041060,-151.0,0.00038356,14]
[341368931,1730847041071,-151.0,0.00038356,14]
[341368932,1730847041084,-151.0,0.00038356,14]
[341368933,1730847041095,-500.0,0.00038356,14]
[341368934,1730847041105,-500.0,0.00038356,14]
[341368935,1730847041117,-500.0,0.00038356,14]
[341368936,1730847041127,-500.0,0.00038356,14]
[341368937,1730847041137,-156.73025,0.00038356,14]
[341368938,1730847041148,-500.0,0.00038356,14]
[341368939,1730847041158,-502.54979823,0.00038356,14]
[341368940,1730847041168,-500.0,0.00038356,14]
[341368941,1730847041179,-500.0,0.00038356,14]
[341368942,1730847041190,-500.0,0.00038356,14]
[341368943,1730847041201,-500.0,0.00038356,14]
[341368944,1730847041211,-500.0,0.00038356,14]
[341368945,1730847041221,-506.35253041,0.00038356,14]
[341368946,1730847041232,-500.0,0.00038356,14]
[341368947,1730847041243,-500.0,0.00038356,14]
[341368948,1730847041253,-503.08659347,0.00038356,14]
[341368949,1730847041262,-510.99117,0.00038356,14]
[341368950,1730847041271,-500.69750789,0.00038356,14]
[341368951,1730847041282,-151.0,0.00038356,14]
[341368952,1730847041292,-151.0,0.00038356,14]
[341368953,1730847041302,-500.0,0.00038356,14]
[341368954,1730847041313,-500.0,0.00038356,14]
[341368955,1730847041322,-568.50564606,0.00038356,14]
[341368956,1730847041331,-500.0,0.00038356,14]
[341368957,1730847041393,-506.30487625,0.00038356,14]
[341368958,1730847041402,-513.66752347,0.00038356,14]
[341368959,1730847041411,-500.0,0.00038356,14]
[341368960,1730847041421,-500.0,0.00038356,14]
[341368961,1730847041430,-500.0,0.00038356,14]
[341368962,1730847041440,-500.0,0.00038356,14]
[341368963,1730847041450,-500.0,0.00038356,14]
[341368964,1730847041459,-500.0,0.00038356,14]
[341368965,1730847041469,-500.0,0.00038356,14]
[341368966,1730847041478,-151.0,0.00038356,14]
[341368967,1730847041487,-151.0,0.00038356,14]
[341368968,1730847041496,-500.0,0.00038356,14]
[341368969,1730847041506,-151.0,0.00038356,14]
[341368970,1730847041516,-151.0,0.00038356,14]
[341368971,1730847041525,-151.0,0.00038356,14]
[341368972,1730847041534,-151.0,0.00038356,14]
[341368973,1730847041545,-151.0,0.00038356,14]
[341368974,1730847041554,-151.0,0.00038356,14]
[341368975,1730847041564,-151.0,0.00038356,14]
[341368976,1730847041574,-151.0,0.00038356,14]
[341368977,1730847041583,-151.0,0.00038356,14]
[341368978,1730847041592,-151.0,0.00038356,14]
[341368979,1730847041602,-500.0,0.00038356,14]
[341368980,1730847041612,-151.0,0.00038356,14]
[341368981,1730847041621,-151.0,0.00038356,14]
[341368982,1730847041630,-500.0,0.00038356,14]
[341368983,1730847041639,-151.0,0.00038356,14]
[341368984,1730847041648,-151.0,0.00038356,14]
[341368985,1730847041658,-151.0,0.00038356,14]
[341368986,1730847041666,-151.0,0.00038356,14]
[341368987,1730847041675,-500.0,0.00038356,14]
[341368988,1730847041685,-500.0,0.00038356,14]
[341368989,1730847041694,-151.0,0.00038356,14]
[341368990,1730847041703,-151.0,0.00038356,14]
[341368991,1730847041712,-151.0,0.00038356,14]
[341368992,1730847041722,-500.0,0.00038356,14]
[341368993,1730847041731,-477.23380652,0.00038356,14]
[341368994,1730847041740,-500.0,0.00038356,14]
[341368995,1730847041750,-500.0,0.00038356,14]
[341368996,1730847041759,-500.0,0.00038356,14]
[341368997,1730847041768,-500.0,0.00038356,14]
[341368998,1730847041777,-500.0,0.00038356,14]
[341368999,1730847041787,-500.0,0.00038356,14]
[341369000,1730847041796,-500.0,0.00038356,14]
[341369001,1730847041806,-503.79365094,0.00038356,14]
[341369002,1730847041815,-173.21818613,0.00038356,14]
[341369003,1730847041825,-151.0,0.00038356,14]
[341369004,1730847041834,-151.0,0.00038356,14]
[341369005,1730847041843,-151.0,0.00038356,14]
[341369006,1730847041853,-500.0,0.00038356,14]
[341369007,1730847041862,-500.97760822,0.00038356,14]
[341369008,1730847041872,-500.0,0.00038356,14]
[341369009,1730847041881,-500.0,0.00038356,14]
[341369010,1730847041891,-646.64561766,0.00038356,14]
[341369011,1730847041901,-154.585799,0.00038356,14]
[341369012,1730847041911,-510.87994634,0.00038356,14]
[341369013,1730847041926,-500.0,0.00038356,14]
[341369014,1730847041935,-500.0,0.00038356,14]
[341369015,1730847041944,-505.76503707,0.00038356,14]
[341369016,1730847041954,-500.0,0.00038356,14]
[341369017,1730847041963,-500.0,0.00038356,14]
[341369018,1730847041973,-151.0,0.00038356,14]
[341369019,1730847041982,-151.0,0.00038356,14]
[341369020,1730847041992,-178.777265,0.00038356,14]
[341369021,1730847042004,-500.0,0.00038356,14]
[341369022,1730847042015,-500.0,0.00038356,14]
[341369023,1730847042027,-500.0,0.00038356,14]
[341369024,1730847042038,-500.0,0.00038356,14]
[341369025,1730847042048,-1000.0,0.00038356,30]
[341369026,1730847042059,-500.0,0.00038356,14]
[341369027,1730847042070,-504.47781942,0.00038356,14]
[341369028,1730847042081,-500.0,0.00038356,10]
[341369029,1730847042091,-508.79772968,0.00038356,14]
[341369030,1730847042101,-500.0,0.00038356,14]
[341369031,1730847042112,-500.0,0.00038356,14]
[341369032,1730847042123,-500.0,0.00038356,14]
[341369033,1730847042133,-500.0,0.00038356,14]
[341369034,1730847042143,-500.0,0.00038356,14]
[341369035,1730847042152,-500.0,0.00038356,14]
[341369036,1730847042164,-500.0,0.00038356,14]
[341369037,1730847042175,-627.95,0.00038356,14]
[341369038,1730847042184,-500.0,0.00038356,14]
[341369039,1730847042194,-500.0,0.00038356,14]
[341369040,1730847042205,-503.55059547,0.00038356,14]
[341369041,1730847042214,-504.5760185,0.00038356,14]
[341369042,1730847042227,-500.0,0.00038356,14]
[341369043,1730847042236,-500.0,0.00038356,14]
[341369044,1730847042245,-500.0,0.00038356,14]
[341369045,1730847042256,-500.0,0.00038356,14]
[341369046,1730847042267,-500.0,0.00038356,14]
[341369047,1730847042278,-500.0,0.00038356,14]
[341369048,1730847042289,-500.0,0.00038356,14]
[341369049,1730847042298,-505.57413448,0.00038356,14]
[341369050,1730847042309,-523.45069619,0.00038356,14]
[341369051,1730847042318,-492.30321511,0.00038356,14]
[341369052,1730847042328,-518.45391823,0.00038356,14]
[341369053,1730847042338,-500.0,0.00038356,14]
[341369054,1730847042347,-500.0,0.00038356,14]
[341369055,1730847042357,-500.0,0.00038356,14]
[341369056,1730847042367,-500.0,0.00038356,14]
[341369057,1730847042429,-500.98375059,0.00038356,14]
[341369058,1730847042439,-500.0,0.00038356,14]
[341369059,1730847042448,-500.0,0.00038356,14]
[341369060,1730847042458,-501.07237061,0.00038356,14]
[341369061,1730847042467,-500.0,0.00038356,14]
[341369062,1730847042477,-500.0,0.00038356,14]
[341369063,1730847042486,-500.0,0.00038356,14]
[341369064,1730847042496,-501.785324,0.00038356,14]
[341369065,1730847042505,-500.0,0.00038356,14]
[341369066,1730847042515,-500.0,0.00038356,14]
[341369069,1730847042524,-500.00000001,0.00038356,14]
[341369071,1730847042533,-500.0,0.00038356,14]
[341369073,1730847042545,-500.0,0.00038356,14]
[341369075,1730847042554,-502.73091166,0.00038356,14]
[341369077,1730847042563,-508.59418278,0.00038356,14]
[341369080,1730847042572,-505.10826291,0.00038356,14]
[341369082,1730847042582,-500.0,0.00038356,14]
[341369084,1730847042592,-500.0,0.00038356,14]
[341369087,1730847042601,-500.0,0.00038356,14]
[341369089,1730847042610,-500.0,0.00038356,14]
[341369091,1730847042619,-506.86388507,0.00038356,14]
[341369093,1730847042629,-500.0,0.00038356,14]
[341369094,1730847042638,-500.0,0.00038356,14]
[341369096,1730847042647,-512.26283798,0.00038356,14]
[341369098,1730847042656,-504.45056544,0.00038356,14]
[341369100,1730847042665,-437.23019936,0.00038356,14]
[341369103,1730847042676,-500.0,0.00038356,14]
[341369104,1730847042685,-500.0,0.00038356,14]
[341369106,1730847042694,-500.0,0.00038356,7]
[341369107,1730847042703,-500.0,0.00038356,14]
[341369109,1730847042712,-656.26,0.00038356,14]
[341369110,1730847042721,-500.0,0.00038356,14]
[341369112,1730847042731,-502.9004759,0.00038356,14]
[341369114,1730847042740,-500.0,0.00038356,14]
[341369115,1730847042750,-500.0,0.00038356,14]
[341369117,1730847042760,-500.0,0.00038356,14]
[341369118,1730847042769,-500.0,0.00038356,14]
[341369120,1730847042778,-500.0,0.00038356,14]
[341369121,1730847042787,-500.0,0.00038356,14]
[341369123,1730847042799,-500.0,0.00038356,14]
[341369124,1730847042808,-500.0,0.00038356,14]
[341369126,1730847042818,-500.0,0.00038356,14]
[341369128,1730847042827,-500.0,0.00038356,14]
[341369130,1730847042836,-507.06429306,0.00038356,14]
[341369131,1730847042846,-151.0,0.00038356,14]
[341369133,1730847042855,-151.0,0.00038356,14]
[341369135,1730847042864,-151.0,0.00038356,14]
[341369137,1730847042874,-151.0,0.00038356,14]
[341369140,1730847042883,-500.0,0.00038356,14]
[341369142,1730847042892,-151.0,0.00038356,14]
[341369145,1730847042902,-151.0,0.00038356,14]
[341369148,1730847042911,-500.0,0.00038356,14]
[341369149,1730847042920,-151.0,0.00038356,14]
[341369151,1730847042929,-151.0,0.00038356,14]
[341369152,1730847042938,-151.0,0.00038356,14]
[341369154,1730847042947,-325.65663081,0.00038356,14]
[341369156,1730847042957,-151.0,0.00038356,14]
[341369159,1730847042966,-455.29956672,0.00038356,14]
[341369161,1730847042975,-500.0,0.00038356,14]
[341369163,1730847042984,-500.0,0.00038356,14]
[341369164,1730847042994,-151.0,0.00038356,14]
[341369166,1730847043004,-500.0,0.00038356,14]
[341369167,1730847043014,-151.0,0.00038356,14]
[341369169,1730847043023,-272.63832,0.00038356,14]
[341369171,1730847043032,-500.0,0.00038356,14]
[341369172,1730847043042,-506.28255789,0.00038356,14]
[341369173,1730847043051,-151.0,0.00038356,14]
[341369174,1730847043060,-151.0,0.00038356,14]
[341369175,1730847043070,-500.0,0.00038356,14]
[341369177,1730847043080,-646.84165336,0.00038356,14]
[341369179,1730847043090,-151.0,0.00038356,14]
[341369181,1730847043099,-151.0,0.00038356,14]
[341369183,1730847043109,-501.8342484,0.00038356,14]
[341369185,1730847043117,-151.0,0.00038356,14]
[341369187,1730847043127,-151.0,0.00038356,14]
[341369189,1730847043135,-501.51169872,0.00038356,14]
[341369191,1730847043145,-151.0,0.00038356,14]
[341369193,1730847043154,-500.0,0.00038356,14]
[341369194,1730847043163,-388.6294822,0.00038356,14]
[341369196,1730847043172,-500.0,0.00038356,14]
[341369199,1730847043182,-500.0,0.00038356,14]
[341369201,1730847043193,-500.0,0.00038356,14]
[341369203,1730847043203,-500.0,0.00038356,14]
[341369205,1730847043212,-500.0,0.00038356,14]
[341369207,1730847043224,-500.0,0.00038356,14]
[341369208,1730847043234,-500.0,0.00038356,14]
[341369211,1730847043244,-500.0,0.00038356,14]
[341369212,1730847043253,-500.0,0.00038356,14]
[341369215,1730847043263,-500.0,0.00038356,14]
[341369216,1730847043274,-1181.55,0.00038356,14]
[341369218,1730847043285,-910.43,0.00038356,14]
[341369221,1730847043296,-151.0,0.00038356,14]
[341369228,1730847043351,-503.8883564,0.00038356,14]
[341369230,1730847043364,-151.0,0.00038356,14]
[341369232,1730847043374,-151.0,0.00038356,14]
[341369234,1730847043383,-500.0,0.00038356,14]
[341369236,1730847043393,-151.0,0.00038356,14]
[341369238,1730847043402,-151.0,0.00038356,14]
[341369240,1730847043411,-276.191212,0.00038356,14]
[341369242,1730847043421,-500.0,0.00038356,14]
[341369244,1730847043430,-500.0,0.00038356,14]
[341369246,1730847043439,-514.84187045,0.00038356,14]
[341369248,1730847043449,-501.8772885,0.00038356,14]
[341369250,1730847043459,-503.6356935,0.00038356,14]
[341369252,1730847043469,-502.65966867,0.00038356,14]
[341369254,1730847043478,-508.1639528,0.00038356,14]
[341369256,1730847043487,-309.74295944,0.00038356,14]
[341369258,1730847043496,-500.0,0.00038356,14]
[341369260,1730847043506,-568.32150609,0.00038356,14]
[341369262,1730847043514,-500.0,0.00038356,14]
[341369264,1730847043525,-501.17588802,0.00038356,14]
[341369266,1730847043535,-500.0,0.00038356,14]
[341369268,1730847043545,-500.0,0.00038356,14]
[341369270,1730847043555,-500.0,0.00038356,14]
[341369272,1730847043564,-513.88296897,0.00038356,14]
[341369274,1730847043573,-151.0,0.00038356,14]
[341369276,1730847043582,-506.6102976,0.00038356,14]
[341369278,1730847043591,-610.40236435,0.00038356,14]
[341369279,1730847043600,-585.40191811,0.00038356,14]
[341369280,1730847043609,-500.0,0.00038356,14]
[341369282,1730847043618,-188.0,0.00038356,14]
[341369284,1730847043628,-500.0,0.00038356,14]
[341369286,1730847043637,-500.0,0.00038356,14]
[341369288,1730847043646,-505.59307054,0.00038356,14]
[341369290,1730847043655,-500.0,0.00038356,14]
[341369292,1730847043666,-500.0,0.00038356,14]
[341369294,1730847043676,-500.0,0.00038356,14]
[341369296,1730847043685,-502.93571961,0.00038356,14]
[341369298,1730847043694,-506.91648772,0.00038356,14]
[341369300,1730847043704,-500.0,0.00038356,14]
[341369302,1730847043713,-500.0,0.00038356,14]
[341369304,1730847043723,-500.0,0.00038356,14]
[341369306,1730847043733,-501.19,0.00038356,14]
[341369308,1730847043743,-505.36300835,0.00038356,14]
[341369310,1730847043752,-500.0,0.00038356,14]
[341369312,1730847043762,-501.58247669,0.00038356,14]
[341369314,1730847043771,-500.0,0.00038356,14]
[341369316,1730847043780,-500.0,0.00038356,14]
[341369318,1730847043790,-500.0,0.00038356,14]
[341369320,1730847043800,-500.0,0.00038356,14]
[341369322,1730847043809,-500.0,0.00038356,14]
[341369324,1730847043818,-500.0,0.00038356,14]
[341369326,1730847043827,-500.0,0.00038356,14]
[341369328,1730847043836,-10897.95,0.00038356,14]
[341369330,1730847043845,-500.0,0.00038356,14]
[341369332,1730847043854,-514.11427911,0.00038356,14]
[341369334,1730847043863,-165.765743,0.00038356,14]
[341369336,1730847043872,-504.43108934,0.00038356,14]
[341369338,1730847043881,-393.82578214,0.00038356,14]
[341369340,1730847043890,-500.0,0.00038356,14]
[341369341,1730847043899,-500.0,0.00038356,14]
[341369343,1730847043908,-8813.18,0.00038356,14]
[341369345,1730847043917,-500.0,0.00038356,14]
[341369347,1730847043927,-500.0,0.00038356,14]
[341369349,1730847043936,-500.0,0.00038356,14]
[341369351,1730847043945,-500.0,0.00038356,14]
[341369353,1730847043954,-500.0,0.00038356,14]
[341369355,1730847043964,-500.77028733,0.00038356,14]
[341369357,1730847043973,-500.0,0.00038356,14]
[341369359,1730847043982,-500.0,0.00038356,14]
[341369361,1730847043992,-500.0,0.00038356,14]
[341369363,1730847044002,-750.01,0.00038356,14]
[341369365,1730847044013,-500.0,0.00038356,14]
[341369367,1730847044022,-504.85956342,0.00038356,14]
[341369370,1730847044032,-500.0,0.00038356,14]
[341369372,1730847044041,-505.70262019,0.00038356,14]
[341369373,1730847044050,-500.0,0.00038356,14]
[341369376,1730847044059,-741.25,0.00038356,14]
[341369378,1730847044068,-506.34650998,0.00038356,14]
[341369380,1730847044078,-3022.06,0.00038356,14]
[341369381,1730847044087,-500.0,0.00038356,14]
[341369382,1730847044096,-500.0,0.00038356,14]
[341369383,1730847044105,-500.0,0.00038356,14]
[341369385,1730847044114,-500.0,0.00038356,14]
[341369388,1730847044124,-500.0,0.00038356,14]
[341369390,1730847044133,-507.94176831,0.00038356,14]
[341369392,1730847044142,-500.0,0.00038356,14]
[341369394,1730847044152,-2669.38,0.00038356,14]
[341369401,1730847044212,-503.39229126,0.00038356,14]
[341369403,1730847044221,-504.54110512,0.00038356,14]
[341369405,1730847044231,-500.0,0.00038356,14]
[341369407,1730847044241,-523.76407451,0.00038356,14]
[341369409,1730847044250,-500.0,0.00038356,14]
[341369411,1730847044259,-608.34,0.00038356,14]
[341369413,1730847044269,-325.06180817,0.00038356,14]
[341369415,1730847044280,-525.11457789,0.00038356,14]
[341369417,1730847044291,-500.0,0.00038356,14]
[341369418,1730847044302,-500.0,0.00038356,14]
[341369419,1730847044312,-500.0,0.00038356,14]
[341369420,1730847044321,-500.0,0.00038356,14]
[341369421,1730847044331,-500.0,0.00038356,14]
[341369422,1730847044341,-500.0,0.00038356,14]
[341369423,1730847044350,-405.46832262,0.00038356,14]
[341369424,1730847044360,-508.98833859,0.00038356,14]
[341369425,1730847044370,-500.0,0.00038356,14]
[341369426,1730847044379,-1000.0,0.00038356,14]
[341369427,1730847044389,-501.83121502,0.00038356,14]
[341369428,1730847044399,-503.3022152,0.00038356,14]
[341369429,1730847044408,-500.0,0.00038356,14]
[341369430,1730847044418,-151.0,0.00038356,14]
[341369431,1730847044428,-541.78473439,0.00038356,14]
[341369432,1730847044437,-500.0,0.00038356,14]
[341369433,1730847044446,-502.26869928,0.00038356,14]
[341369434,1730847044456,-640.82650008,0.00038356,14]
[341369435,1730847044465,-1004.22,0.00038356,14]
[341369436,1730847044475,-500.0,0.00038356,14]
[341369437,1730847044486,-500.0,0.00038356,14]
[341369438,1730847044495,-500.0,0.00038356,14]
[341369439,1730847044504,-151.0,0.00038356,14]
[341369440,1730847044514,-500.0,0.00038356,14]
[341369441,1730847044523,-151.0,0.00038356,14]
[341369442,1730847044533,-151.0,0.00038356,14]
[341369443,1730847044542,-500.0,0.00038356,14]
[341369444,1730847044552,-151.0,0.00038356,14]
[341369445,1730847044561,-151.0,0.00038356,14]
[341369446,1730847044570,-151.0,0.00038356,14]
[341369447,1730847044580,-513.40842967,0.00038356,14]
[341369448,1730847044600,-500.0,0.00038356,14]
[341369449,1730847044619,-500.0,0.00038356,14]
[341369450,1730847044639,-514.6971034,0.00038356,14]
[341369451,1730847044660,-506.49157463,0.00038356,14]
[341369452,1730847044680,-506.91562552,0.00038356,14]
[341369453,1730847044697,-500.0,0.00038356,14]
[341369454,1730847044715,-500.0,0.00038356,14]
[341369455,1730847044728,-500.0,0.00038356,14]
[341369456,1730847044746,-500.0,0.00038356,14]